fUSD/lending_fUSD_20250519
["ID","MTS","AMOUNT","RATE_DAILY","PERIOD"]
[361595233,1747629056163,-151.0,0.00013917,2]
[361595234,1747629056173,-151.0,0.00013917,2]
[361595235,1747629056183,-151.0,0.00013917,2]
[361595236,1747629056191,-200.0,0.00013917,2]
[361595237,1747629056201,-400.0,0.00013917,2]
[361595238,1747629056210,-400.0,0.00013917,2]
[361595239,1747629056220,-400.0,0.00013917,2]
[361595240,1747629056229,-400.0,0.00013917,2]
[361595241,1747629056239,-400.0,0.00013917,2]
[361595242,1747629056248,-460.89,0.00013917,2]
[361595243,1747629056258,-400.0,0.00013917,2]
[361595244,1747629056267,-400.0,0.00013917,2]
[361595245,1747629056277,-400.0,0.00013917,2]
[361595246,1747629056287,-455.36,0.00013917,2]
[361595247,1747629056296,-400.0,0.00013917,2]
[361595248,1747629056306,-400.0,0.00013917,2]
[361595249,1747629056315,-400.0,0.00013917,2]
[361595250,1747629056326,-400.0,0.00013917,2]
[361595251,1747629056336,-410.83,0.00013917,2]
[361595252,1747629056349,-250.0,0.00013917,2]
[361595253,1747629056359,-400.0,0.00013917,2]
[361595254,1747629056368,-685.25,0.00013917,2]
[361595255,1747629056378,-151.0,0.00013917,2]
[361595256,1747629056389,-400.0,0.00013917,2]
[361595257,1747629056398,-151.0,0.00013917,2]
[361595258,1747629056407,-400.0,0.00013917,2]
[361595259,1747629056418,-400.0,0.00013917,2]
[361595260,1747629056428,-400.0,0.00013917,2]
[361595261,1747629056437,-400.0,0.00013917,2]
[361595262,1747629056447,-265.477324,0.00013917,2]
[361595263,1747629056456,-400.0,0.00013917,2]
[361595264,1747629056466,-265.477324,0.00013917,2]
[361595265,1747629056475,-400.0,0.00013917,2]
[361595266,1747629056485,-625.19,0.00013917,2]
[361595267,1747629056494,-495.31384608,0.00013917,2]
[361595268,1747629056503,-400.0,0.00013917,2]
[361595269,1747629056514,-151.0,0.00013917,2]
[361595270,1747629056523,-400.0,0.00013917,2]
[361595271,1747629056533,-400.0,0.00013917,2]
[361595272,1747629056542,-400.0,0.00013917,2]
[361595273,1747629056552,-400.0,0.00013917,2]
[361595274,1747629056562,-774.24,0.00013917,2]
[361595275,1747629056571,-400.0,0.00013917,2]
[361595276,1747629056581,-202.46276,0.00013917,2]
[361595277,1747629056590,-400.0,0.00013917,2]
[361595278,1747629056599,-400.0,0.00013917,2]
[361595279,1747629056609,-151.380315,0.00013917,2]
[361595280,1747629056618,-400.0,0.00013917,2]
[361595281,1747629056628,-531.0,0.00013917,2]
[361595282,1747629056637,-498.66,0.00013917,2]
[361595283,1747629056646,-455.82657516,0.00013917,2]
[361595284,1747629056655,-400.0,0.00013917,2]
[361595285,1747629056666,-400.0,0.00013917,2]
[361595286,1747629056675,-400.0,0.00013917,2]
[361595287,1747629056685,-400.0,0.00013917,2]
[361595288,1747629056695,-159.200624,0.00013917,2]
[361595289,1747629056704,-426.41,0.00013917,2]
[361595290,1747629056713,-400.0,0.00013917,2]
[361595291,1747629056723,-151.739659,0.00013917,2]
[361595292,1747629056732,-400.0,0.00013917,2]
[361595293,1747629056743,-400.0,0.00013917,2]
[361595294,1747629056752,-400.0,0.00013917,2]
[361595295,1747629056761,-400.0,0.00013917,2]
[361595296,1747629056771,-151.0,0.00013917,2]
[361595297,1747629056780,-400.0,0.00013917,2]
[361595298,1747629056789,-400.0,0.00013917,2]
[361595299,1747629056799,-400.0,0.00013917,2]
[361595300,1747629056808,-561.74,0.00013917,2]
[361595301,1747629056817,-400.0,0.00013917,2]
[361595302,1747629056827,-400.0,0.00013917,2]
[361595303,1747629056837,-151.0,0.00013917,2]
[361595304,1747629056846,-205.18616464,0.00013917,2]
[361595305,1747629056855,-151.0,0.00013917,2]
[361595306,1747629056865,-400.0,0.00013917,2]
[361595307,1747629056879,-151.0,0.00013917,2]
[361595308,1747629056889,-400.0,0.00013917,2]
[361595309,1747629056898,-400.0,0.00013917,2]
[361595310,1747629056907,-151.0,0.00013917,2]
[361595311,1747629056919,-400.0,0.00013917,2]
[361595312,1747629056929,-400.0,0.00013917,2]
[361595313,1747629056938,-503.83,0.00013917,2]
[361595314,1747629056947,-400.0,0.00013917,2]
[361595315,1747629056956,-151.0,0.00013917,2]
[361595316,1747629056965,-152.268961,0.00013917,2]
[361595317,1747629056975,-753.27,0.00013917,2]
[361595318,1747629056984,-514.82,0.00013917,2]
[361595319,1747629056993,-231.442061,0.00013917,2]
[361595320,1747629057005,-426.73,0.00013917,2]
[361595321,1747629057014,-231.442061,0.00013917,2]
[361595322,1747629057023,-450.34,0.00013917,2]
[361595323,1747629057032,-400.0,0.00013917,2]
[361595324,1747629057041,-411.80963665,0.00013917,2]
[361595325,1747629057050,-400.0,0.00013917,2]
[361595326,1747629057060,-500.0,0.00013917,2]
[361595327,1747629057069,-400.0,0.00013917,2]
[361595328,1747629057078,-400.0,0.00013917,2]
[361595329,1747629057087,-514.88,0.00013917,2]
[361595330,1747629057097,-652.8,0.00013917,2]
[361595331,1747629057105,-400.0,0.00013917,2]
[361595332,1747629057115,-529.88,0.00013917,2]
[361595333,1747629057124,-2386.91,0.00013917,2]
[361595334,1747629057133,-400.0,0.00013917,2]
[361595335,1747629057142,-761.05,0.00013917,2]
[361595336,1747629057151,-400.0,0.00013917,2]
[361595337,1747629057162,-579.59,0.00013917,2]
[361595338,1747629057171,-400.0,0.00013917,2]
[361595339,1747629057180,-252.78263813,0.00013917,2]
[361595340,1747629057189,-400.0,0.00013917,2]
[361595341,1747629057198,-1007.94,0.00013917,2]
[361595342,1747629057207,-423.86,0.00013917,2]
[361595343,1747629057216,-400.0,0.00013917,2]
[361595344,1747629057225,-685.5,0.00013917,2]
[361595345,1747629057234,-478.62,0.00013917,2]
[361595346,1747629057243,-400.0,0.00013917,2]
[361595347,1747629057252,-400.0,0.00013917,2]
[361595348,1747629057261,-400.0,0.00013917,2]
[361595349,1747629057270,-566.91,0.00013917,2]
[361595350,1747629057279,-536.59,0.00013917,2]
[361595351,1747629057289,-400.0,0.00013917,2]
[361595352,1747629057298,-400.0,0.00013917,2]
[361595353,1747629057307,-400.0,0.00013917,2]
[361595354,1747629057316,-684.26,0.00013917,2]
[361595355,1747629057325,-151.0,0.00013917,2]
[361595356,1747629057337,-654.02,0.00013917,2]
[361595357,1747629057347,-400.0,0.00013917,2]
[361595358,1747629057356,-513.49,0.00013917,2]
[361595359,1747629057365,-400.0,0.00013917,2]
[361595360,1747629057374,-400.0,0.00013917,2]
[361595361,1747629057385,-400.0,0.00013917,2]
[361595362,1747629057394,-467.19,0.00013917,2]
[361595363,1747629057403,-400.0,0.00013917,2]
[361595364,1747629057414,-400.0,0.00013917,2]
[361595365,1747629057426,-400.0,0.00013917,2]
[361595366,1747629057436,-400.0,0.00013917,2]
[361595367,1747629057446,-400.0,0.00013917,2]
[361595368,1747629057455,-400.0,0.00013917,2]
[361595369,1747629057464,-400.0,0.00013917,2]
[361595370,1747629057473,-506.27,0.00013917,2]
[361595371,1747629057482,-558.06,0.00013917,2]
[361595372,1747629057491,-1166.94,0.00013917,2]
[361595373,1747629057500,-400.0,0.00013917,2]
[361595374,1747629057510,-400.0,0.00013917,2]
[361595375,1747629057520,-880.75,0.00013917,2]
[361595376,1747629057529,-419.15,0.00013917,2]
[361595377,1747629057539,-566.96,0.00013917,2]
[361595378,1747629057548,-487.45,0.00013917,2]
[361595379,1747629057558,-510.79,0.00013917,2]
[361595380,1747629057567,-400.0,0.00013917,2]
[361595381,1747629057576,-400.0,0.00013917,2]
[361595382,1747629057585,-400.0,0.00013917,2]
[361595383,1747629057595,-562.01,0.00013917,2]
[361595384,1747629057604,-400.0,0.00013917,2]
[361595385,1747629057613,-723.95,0.00013917,2]
[361595386,1747629057622,-595.67,0.00013917,2]
[361595387,1747629057631,-400.0,0.00013917,2]
[361595388,1747629057641,-400.0,0.00013917,2]
[361595389,1747629057650,-272.77525674,0.00013917,2]
[361595390,1747629057659,-400.0,0.00013917,2]
[361595391,1747629057669,-438.35,0.00013917,2]
[361595392,1747629057679,-154.31814,0.00013917,2]
[361595393,1747629057688,-400.0,0.00013917,2]
[361595394,1747629057697,-1166.47,0.00013917,2]
[361595395,1747629057707,-667.65,0.00013917,2]
[361595396,1747629057717,-417.63,0.00013917,2]
[361595397,1747629057726,-400.0,0.00013917,2]
[361595398,1747629057735,-438.01,0.00013917,2]
[361595399,1747629057744,-687.85,0.00013917,2]
[361595400,1747629057753,-636.01,0.00013917,2]
[361595401,1747629057763,-400.0,0.00013917,2]
[361595402,1747629057772,-649.15,0.00013917,2]
[361595403,1747629057784,-572.71,0.00013917,2]
[361595404,1747629057794,-437.8,0.00013917,2]
[361595405,1747629057803,-409.68,0.00013917,2]
[361595406,1747629057812,-400.0,0.00013917,2]
[361595407,1747629057821,-785.14,0.00013917,2]
[361595408,1747629057830,-400.0,0.00013917,2]
[361595409,1747629057839,-400.0,0.00013917,2]
[361595410,1747629057849,-416.66,0.00013917,2]
[361595411,1747629057858,-633.75,0.00013917,2]
[361595412,1747629057867,-400.0,0.00013917,2]
[361595413,1747629057876,-400.0,0.00013917,2]
[361595414,1747629057886,-400.0,0.00013917,2]
[361595415,1747629057894,-400.0,0.00013917,2]
[361595416,1747629057903,-151.0,0.00013917,2]
[361595417,1747629057912,-1040.64,0.00013917,2]
[361595418,1747629057921,-608.56,0.00013917,2]
[361595419,1747629057931,-942.1,0.00013917,2]
[361595420,1747629057939,-400.0,0.00013917,2]
[361595421,1747629057948,-937.01,0.00013917,2]
[361595422,1747629057957,-521.01,0.00013917,2]
[361595423,1747629057966,-2833.948635,0.00013917,2]
[361595424,1747629057975,-151.0,0.00013917,2]
[361595425,1747629057983,-973.990694,0.00013917,2]
[361595426,1747629057992,-151.0,0.00013917,2]
[361595427,1747629058001,-497.46,0.00013917,2]
[361595428,1747629058010,-400.0,0.00013917,2]
[361595429,1747629058019,-400.0,0.00013917,2]
[361595430,1747629058027,-501.74,0.00013917,2]
[361595431,1747629058036,-426.35,0.00013917,2]
[361595432,1747629058045,-903.71,0.00013917,2]
[361595433,1747629058054,-461.89,0.00013917,2]
[361595434,1747629058063,-400.0,0.00013917,2]
[361595435,1747629058071,-1208.8,0.00013917,2]
[361595436,1747629058080,-849.25,0.00013917,2]
[361595437,1747629058089,-400.0,0.00013917,2]
[361595438,1747629058098,-151.0,0.00013917,2]
[361595439,1747629058106,-400.0,0.00013917,2]
[361595440,1747629058115,-1088.59,0.00013917,2]
[361595441,1747629058124,-400.0,0.00013917,2]
[361595442,1747629058133,-400.0,0.00013917,2]
[361595443,1747629058143,-427.06,0.00013917,2]
[361595444,1747629058151,-1190.51,0.00013917,2]
[361595445,1747629058160,-687.75025059,0.00013917,2]
[361595446,1747629058665,-185.25678641,0.00013917,2]
[361595447,1747629058678,-151.0,0.00013917,2]
[361595448,1747629058689,-400.0,0.00013917,2]
[361595449,1747629058702,-325.15823082,0.00013917,2]
[361595450,1747629058717,-429.53176918,0.00013917,2]
[361595451,1747629058729,-400.0,0.00013917,2]
[361595452,1747629058741,-400.0,0.00013917,2]
[361595453,1747629058753,-400.0,0.00013917,2]
[361595454,1747629058764,-400.0,0.00013917,2]
[361595455,1747629058776,-400.0,0.00013917,2]
[361595456,1747629058788,-188.959272,0.00013917,2]
[361595457,1747629058800,-1726.97,0.00013917,2]
[361595458,1747629058812,-561.23,0.00013917,2]
[361595459,1747629058825,-400.0,0.00013917,2]
[361595460,1747629058837,-400.0,0.00013917,2]
[361595461,1747629058848,-564.17,0.00013917,2]
[361595462,1747629058858,-441.77,0.00013917,2]
[361595463,1747629058869,-400.0,0.00013917,2]
[361595464,1747629058880,-400.0,0.00013917,2]
[361595465,1747629058891,-964.43,0.00013917,2]
[361595466,1747629058900,-428.53,0.00013917,2]
[361595467,1747629058913,-449.46,0.00013917,2]
[361595468,1747629058927,-400.0,0.00013917,2]
[361595469,1747629058938,-400.0,0.00013917,2]
[361595470,1747629058948,-400.0,0.00013917,2]
[361595471,1747629058958,-400.0,0.00013917,2]
[361595472,1747629058968,-657.89,0.00013917,2]
[361595473,1747629058979,-400.0,0.00013917,2]
[361595474,1747629058991,-151.0,0.00013917,2]
[361595475,1747629059003,-493.74,0.00013917,2]
[361595476,1747629059014,-400.0,0.00013917,2]
[361595477,1747629059024,-400.0,0.00013917,2]
[361595478,1747629059034,-577.84,0.00013917,2]
[361595479,1747629059044,-862.03,0.00013917,2]
[361595480,1747629059054,-400.0,0.00013917,2]
[361595481,1747629059069,-400.0,0.00013917,2]
[361595482,1747629059079,-919.14,0.00013917,2]
[361595483,1747629059090,-400.0,0.00013917,2]
[361595484,1747629059101,-401.65,0.00013917,2]
[361595485,1747629059111,-400.0,0.00013917,2]
[361595486,1747629059122,-942.85,0.00013917,2]
[361595487,1747629059132,-400.0,0.00013917,2]
[361595488,1747629059143,-1355.4,0.00013917,2]
[361595489,1747629059154,-449.5,0.00013917,2]
[361595490,1747629059166,-400.0,0.00013917,2]
[361595491,1747629059176,-400.0,0.00013917,2]
[361595492,1747629059187,-400.0,0.00013917,2]
[361595493,1747629059198,-151.0,0.00013917,2]
[361595494,1747629059208,-640.25,0.00013917,2]
[361595495,1747629059219,-400.0,0.00013917,2]
[361595496,1747629059230,-400.0,0.00013917,2]
[361595497,1747629059242,-420.59,0.00013917,2]
[361595498,1747629059253,-151.0,0.00013917,2]
[361595499,1747629059263,-400.0,0.00013917,2]
[361595500,1747629059274,-462.73,0.00013917,2]
[361595501,1747629059284,-233.146234,0.00013917,2]
[361595502,1747629059295,-495.55,0.00013917,2]
[361595503,1747629059306,-400.0,0.00013917,2]
[361595504,1747629059316,-400.0,0.00013917,2]
[361595505,1747629059327,-151.0,0.00013917,2]
[361595506,1747629059340,-828.8,0.00013917,2]
[361595507,1747629059352,-725.89,0.00013917,2]
[361595508,1747629059362,-204.02710813,0.00013917,2]
[361595509,1747629059373,-544.65,0.00013917,2]
[361595510,1747629059383,-400.0,0.00013917,2]
[361595511,1747629059394,-361.240812,0.00013917,2]
[361595512,1747629059405,-544.88,0.00013917,2]
[361595513,1747629059416,-400.0,0.00013917,2]
[361595514,1747629059427,-400.0,0.00013917,2]
[361595515,1747629059438,-706.26,0.00013917,2]
[361595516,1747629059448,-400.0,0.00013917,2]
[361595517,1747629059459,-602.32047297,0.00013917,2]
[361595518,1747629060103,-400.0,0.00013698,2]
[361595519,1747629060114,-400.0,0.00013698,2]
[361595520,1747629060125,-400.0,0.00013698,2]
[361595521,1747629060135,-307.55,0.00013808,2]
[361595522,1747629060146,-1398.69854932,0.000139,2]
[361595523,1747629060156,-320.52952703,0.00013917,2]
[361595524,1747629060169,-48.41216276,0.00013917,2]
[361595525,1747629060182,-360.91783724,0.00013917,2]
[361595526,1747629060193,-471.33,0.00013917,2]
[361595527,1747629060203,-400.0,0.00013917,2]
[361595528,1747629060214,-400.0,0.00013917,2]
[361595529,1747629060224,-151.0,0.00013917,2]
[361595530,1747629060235,-400.0,0.00013917,2]
[361595531,1747629060245,-834.65,0.00013917,2]
[361595532,1747629060257,-733.82,0.00013917,2]
[361595533,1747629060268,-266.791102,0.00013917,2]
[361595534,1747629060279,-20.24841501,0.00013917,2]
[361595535,1747629060293,-379.75158499,0.00013917,2]
[361595536,1747629060303,-400.0,0.00013917,2]
[361595537,1747629060315,-729.53,0.00013917,2]
[361595538,1747629060325,-151.0,0.00013917,2]
[361595539,1747629060338,-642.71,0.00013917,2]
[361595540,1747629060350,-1000.78,0.00013917,2]
[361595541,1747629060361,-400.0,0.00013917,2]
[361595542,1747629060371,-151.0,0.00013917,2]
[361595543,1747629060383,-151.0,0.00013917,2]
[361595544,1747629060394,-400.0,0.00013917,2]
[361595545,1747629060404,-484.81,0.00013917,2]
[361595546,1747629060416,-280.921889,0.00013917,2]
[361595547,1747629060427,-781.32,0.00013917,2]
[361595548,1747629060437,-400.0,0.00013917,2]
[361595549,1747629060447,-596.28,0.00013917,2]
[361595550,1747629060457,-151.0,0.00013917,2]
[361595551,1747629060468,-843.33,0.00013917,2]
[361595552,1747629060478,-155.203847,0.00013917,2]
[361595553,1747629060489,-970.68,0.00013917,2]
[361595554,1747629060499,-400.0,0.00013917,2]
[361595555,1747629060510,-400.0,0.00013917,2]
[361595556,1747629060523,-151.0,0.00013917,2]
[361595557,1747629060534,-400.0,0.00013917,2]
[361595558,1747629060544,-400.0,0.00013917,2]
[361595559,1747629060555,-400.0,0.00013917,2]
[361595560,1747629060566,-609.42,0.00013917,2]
[361595561,1747629060576,-510.82010437,0.00013917,2]
[361595562,1747629060587,-752.300423,0.00013917,2]
[361595563,1747629060598,-400.0,0.00013917,2]
[361595564,1747629060609,-400.0,0.00013917,2]
[361595565,1747629060620,-710.35,0.00013917,2]
[361595566,1747629060631,-752.300423,0.00013917,2]
[361595567,1747629060643,-556.72,0.00013917,2]
[361595568,1747629060654,-1750.14,0.00013917,2]
[361595569,1747629060666,-400.0,0.00013917,2]
[361595570,1747629060677,-151.0,0.00013917,2]
[361595571,1747629060688,-622.17,0.00013917,2]
[361595572,1747629060699,-2106.69,0.00013917,2]
[361595573,1747629060709,-400.0,0.00013917,2]
[361595574,1747629060719,-400.0,0.00013917,2]
[361595575,1747629060730,-391.621709,0.00013917,2]
[361595576,1747629060740,-1044.08,0.00013917,2]
[361595577,1747629060750,-151.0,0.00013917,2]
[361595578,1747629060761,-400.0,0.00013917,2]
[361595579,1747629060771,-391.621709,0.00013917,2]
[361595580,1747629060781,-400.0,0.00013917,2]
[361595581,1747629060792,-1282.84,0.00013917,2]
[361595582,1747629060804,-613.98,0.00013917,2]
[361595583,1747629060815,-1251.65,0.00013917,2]
[361595584,1747629060826,-894.12,0.00013917,2]
[361595585,1747629060837,-6773.88,0.00013917,2]
[361595586,1747629060848,-151.0,0.00013917,2]
[361595587,1747629060859,-598.5,0.00013917,2]
[361595588,1747629060870,-822.21,0.00013917,2]
[361595589,1747629060880,-569.18,0.00013917,2]
[361595590,1747629060891,-400.0,0.00013917,2]
[361595591,1747629060901,-450.65,0.00013917,2]
[361595592,1747629060912,-1293.32,0.00013917,2]
[361595593,1747629060924,-446.43,0.00013917,2]
[361595594,1747629060934,-400.0,0.00013917,2]
[361595595,1747629060944,-717.75,0.00013917,2]
[361595596,1747629060954,-2372.6,0.00013917,2]
[361595597,1747629060966,-400.0,0.00013917,2]
[361595598,1747629060977,-400.0,0.00013917,2]
[361595599,1747629060987,-935.16,0.00013917,2]
[361595600,1747629060998,-519.36,0.00013917,2]
[361595601,1747629061009,-400.0,0.00013917,2]
[361595602,1747629061020,-407.68,0.00013917,2]
[361595603,1747629061030,-592.02,0.00013917,2]
[361595604,1747629061041,-400.0,0.00013917,2]
[361595605,1747629061051,-905.95,0.00013917,2]
[361595606,1747629061062,-1139.71,0.00013917,2]
[361595607,1747629061073,-6843.25,0.00013917,2]
[361595608,1747629061084,-979.89,0.00013917,2]
[361595609,1747629061094,-713.74,0.00013917,2]
[361595610,1747629061104,-623.6,0.00013917,2]
[361595611,1747629061115,-151.0,0.00013917,2]
[361595612,1747629061125,-557.55,0.00013917,2]
[361595613,1747629061135,-6122.06,0.00013917,2]
[361595614,1747629061146,-400.0,0.00013917,2]
[361595615,1747629061157,-1706.56,0.00013917,2]
[361595616,1747629061167,-400.0,0.00013917,2]
[361595617,1747629061178,-599.32,0.00013917,2]
[361595618,1747629061188,-1049.24,0.00013917,2]
[361595619,1747629061199,-400.0,0.00013917,2]
[361595620,1747629061210,-562.83,0.00013917,2]
[361595621,1747629061220,-1055.59,0.00013917,2]
[361595622,1747629061231,-400.0,0.00013917,2]
[361595623,1747629061242,-400.0,0.00013917,2]
[361595624,1747629061253,-3380.46,0.00013917,2]
[361595625,1747629061263,-765.68,0.00013917,2]
[361595626,1747629061274,-1150.95,0.00013917,2]
[361595627,1747629061284,-767.22,0.00013917,2]
[361595628,1747629061295,-451.95,0.00013917,2]
[361595629,1747629061306,-1505.67,0.00013917,2]
[361595630,1747629061317,-400.0,0.00013917,2]
[361595631,1747629061327,-400.0,0.00013917,2]
[361595632,1747629061341,-12270.41,0.00013917,2]
[361595633,1747629061352,-2283.81,0.00013917,2]
[361595634,1747629061363,-152.118844,0.00013917,2]
[361595635,1747629061374,-400.0,0.00013917,2]
[361595636,1747629061386,-584.71,0.00013917,2]
[361595637,1747629061397,-400.0,0.00013917,2]
[361595638,1747629061409,-817.55,0.00013917,2]
[361595639,1747629061421,-1107.12,0.00013917,2]
[361595640,1747629061432,-444.0,0.00013917,2]
[361595641,1747629061442,-565.58,0.00013917,2]
[361595642,1747629061453,-999.47,0.00013917,2]
[361595643,1747629061463,-152.873619,0.00013917,2]
[361595644,1747629061474,-3844.78,0.00013917,2]
[361595645,1747629061485,-151.0,0.00013917,2]
[361595646,1747629061496,-3826.88,0.00013917,2]
[361595647,1747629061507,-1141.31,0.00013917,2]
[361595648,1747629061517,-829.94,0.00013917,2]
[361595649,1747629061528,-3774.57,0.00013917,2]
[361595650,1747629061539,-896.64,0.00013917,2]
[361595651,1747629061550,-7089.64,0.00013917,2]
[361595652,1747629061560,-2427.18,0.00013917,2]
[361595653,1747629061571,-1191.91,0.00013917,2]
[361595654,1747629061582,-554.85,0.00013917,2]
[361595655,1747629061593,-1266.17,0.00013917,2]
[361595656,1747629061603,-432.63,0.00013917,2]
[361595657,1747629061614,-209.072943,0.00013917,2]
[361595658,1747629061625,-400.0,0.00013917,2]
[361595659,1747629061635,-1662.72,0.00013917,2]
[361595660,1747629061647,-400.0,0.00013917,2]
[361595661,1747629061657,-269.372781,0.00013917,2]
[361595662,1747629061669,-1000.3,0.00013917,2]
[361595663,1747629061678,-1101.53,0.00013917,2]
[361595664,1747629061687,-151.0,0.00013917,2]
[361595665,1747629061697,-560.84,0.00013917,2]
[361595666,1747629061706,-892.26,0.00013917,2]
[361595667,1747629062339,-1155.6,0.00013917,2]
[361595668,1747629062357,-269.372781,0.00013917,2]
[361595669,1747629062369,-706.15,0.00013917,2]
[361595670,1747629062379,-850.19,0.00013917,2]
[361595671,1747629062389,-151.0,0.00013917,2]
[361595672,1747629062398,-400.0,0.00013917,2]
[361595673,1747629062407,-400.0,0.00013917,2]
[361595674,1747629062418,-1670.44,0.00013917,2]
[361595675,1747629062427,-608.94,0.00013917,2]
[361595676,1747629062436,-867.79,0.00013917,2]
[361595677,1747629062446,-759.51,0.00013917,2]
[361595678,1747629062455,-154.633633,0.00013917,2]
[361595679,1747629062463,-79521.31,0.00013917,2]
[361595680,1747629062472,-1349.31,0.00013917,2]
[361595681,1747629062481,-987.24,0.00013917,2]
[361595682,1747629062491,-1119.14,0.00013917,2]
[361595683,1747629062500,-400.0,0.00013917,2]
[361595684,1747629062510,-1089.81,0.00013917,2]
[361595685,1747629062519,-400.0,0.00013917,2]
[361595686,1747629062528,-9759.6,0.00013917,2]
[361595687,1747629062538,-3203.41,0.00013917,2]
[361595688,1747629062547,-2020.31,0.00013917,2]
[361595689,1747629062556,-400.0,0.00013917,2]
[361595690,1747629062566,-1165.1,0.00013917,2]
[361595691,1747629062575,-400.0,0.00013917,2]
[361595692,1747629062585,-479.12,0.00013917,2]
[361595693,1747629062595,-574.36,0.00013917,2]
[361595694,1747629062604,-473.5,0.00013917,2]
[361595695,1747629062613,-18799.89,0.00013917,2]
[361595696,1747629062623,-681.1,0.00013917,2]
[361595697,1747629062633,-400.0,0.00013917,2]
[361595698,1747629062643,-400.0,0.00013917,2]
[361595699,1747629062652,-400.0,0.00013917,2]
[361595700,1747629062661,-524.16,0.00013917,2]
[361595701,1747629062673,-400.0,0.00013917,2]
[361595702,1747629062682,-1011.39,0.00013917,2]
[361595703,1747629062692,-400.0,0.00013917,2]
[361595704,1747629062702,-400.0,0.00013917,2]
[361595705,1747629062711,-8239.35,0.00013917,2]
[361595706,1747629062720,-1115.79,0.00013917,2]
[361595707,1747629062730,-682.28,0.00013917,2]
[361595708,1747629062738,-400.0,0.00013917,2]
[361595709,1747629062748,-1468.05,0.00013917,2]
[361595710,1747629062757,-2354.57,0.00013917,2]
[361595711,1747629062767,-729.78,0.00013917,2]
[361595712,1747629062776,-562.65,0.00013917,2]
[361595713,1747629062786,-3212.66,0.00013917,2]
[361595714,1747629062796,-714.54,0.00013917,2]
[361595715,1747629062805,-151.9259,0.00013917,2]
[361595716,1747629062815,-400.0,0.00013917,2]
[361595717,1747629062824,-400.0,0.00013917,2]
[361595718,1747629062834,-699.0,0.00013917,2]
[361595719,1747629062843,-798.83,0.00013917,2]
[361595720,1747629062853,-813.53,0.00013917,2]
[361595721,1747629062862,-2208.96,0.00013917,2]
[361595722,1747629062872,-3924.55,0.00013917,2]
[361595723,1747629062882,-811.72,0.00013917,2]
[361595724,1747629062891,-698.72,0.00013917,2]
[361595725,1747629062901,-883.72,0.00013917,2]
[361595726,1747629062910,-400.0,0.00013917,2]
[361595727,1747629062919,-496.69,0.00013917,2]
[361595728,1747629062928,-150.596424,0.00013917,2]
[361595729,1747629062938,-400.0,0.00013917,2]
[361595730,1747629062947,-1225.93,0.00013917,2]
[361595731,1747629062957,-6744.61914994,0.00013917,2]
[361595732,1747629062979,-9060.05085006,0.00013917,2]